Workbook

Sheet Raw data
A1: Raw Data
B3: Control Group | F3: Treatment Group
B4: Patient | C4: Effect | D4: Cost | F4: Patient | G4: Effect | H4: Cost
B5: 1 | C5: 5.523022223 | D5: 3641.757438 | F5: 101 | G5: 8.44867953 | H5: 7674.242551
B6: 2 | C6: 5.191964663 | D6: 12121.52591 | F6: 102 | G6: 5.613549881 | H6: 7706.612046
B7: 3 | C7: 11.05141463 | D7: 5786.254801 | F7: 103 | G7: 3.126301614 | H7: 6530.94399
B8: 4 | C8: 9.578636621 | D8: 7900.48733 | F8: 104 | G8: 9.136828783 | H8: 18328.78552
B9: 5 | C9: 7.531006956 | D9: 13883.47877 | F9: 105 | G9: 4.949594592 | H9: 5949.474758
B10: 6 | C10: 6.924525696 | D10: 13344.61904 | F10: 106 | G10: 4.585321511 | H10: 6029.645031
B11: 7 | C11: 6.929599869 | D11: 5326.927359 | F11: 107 | G11: 1.078318325 | H11: 6136.046252
B12: 8 | C12: 3.11573289 | D12: 4004.521686 | F12: 108 | G12: 6.354948062 | H12: 6291.670917
B13: 9 | C13: 11.71142082 | D13: 6014.418777 | F13: 109 | G13: 9.647287374 | H13: 13825.65314
B14: 10 | C14: 6.118099262 | D14: 9322.032173 | F14: 110 | G14: 7.639100326 | H14: 7567.642343
B15: 11 | C15: 4.88901648 | D15: 3230.190786 | F15: 111 | G15: 5.750060364 | H15: 7055.212383
B16: 12 | C16: 3.769616975 | D16: 2868.176203 | F16: 112 | G16: 3.819616349 | H16: 6913.030839
B17: 13 | C17: 8.532585627 | D17: 5451.788942 | F17: 113 | G17: 13.19778105 | H17: 12882.23782
B18: 14 | C18: 6.318352662 | D18: 7685.287676 | F18: 114 | G18: 2.672681153 | H18: 13839.59325
B19: 15 | C19: 3.90346907 | D19: 3228.510419 | F19: 115 | G19: 8.234103391 | H19: 15783.23028
B20: 16 | C20: 4.199795298 | D20: 4520.682798 | F20: 116 | G20: 3.564789878 | H20: 5259.13716
B21: 17 | C21: 2.380459127 | D21: 1547.30767 | F21: 117 | G21: 9.969394571 | H21: 9842.288976
B22: 18 | C22: 5.104089923 | D22: 2879.771199 | F22: 118 | G22: 9.028616571 | H22: 15933.18969
B23: 19 | C23: 4.548774834 | D23: 3546.402597 | F23: 119 | G23: 13.63087092 | H23: 17970.13463
B24: 20 | C24: 9.591560253 | D24: 5646.980802 | F24: 120 | G24: 10.77669024 | H24: 20972.19296
B25: 21 | C25: 0.2873014006 | D25: 5738.298393 | F25: 121 | G25: 4.924267513 | H25: 5379.447039
B26: 22 | C26: 2.939577423 | D26: 1482.47376 | F26: 122 | G26: 1.551495319 | H26: 9871.206883
B27: 23 | C27: 4.302812942 | D27: 3009.210511 | F27: 123 | G27: 4.84472755 | H27: 12813.82846
B28: 24 | C28: 11.65328811 | D28: 7932.28004 | F28: 124 | G28: 1.29326108 | H28: 2254.859838
B29: 25 | C29: 1.903665087 | D29: 16030.08997 | F29: 125 | G29: 4.762060757 | H29: 6267.357199
B30: 26 | C30: 5.15252559 | D30: 3217.585179 | F30: 126 | G30: 11.21437835 | H30: 16389.35765
B31: 27 | C31: 5.844059201 | D31: 3219.017647 | F31: 127 | G31: 5.86250384 | H31: 9938.764449
B32: 28 | C32: 11.32105005 | D32: 6238.872227 | F32: 128 | G32: 8.018817187 | H32: 13424.81491
B33: 29 | C33: 9.670097761 | D33: 5240.382758 | F33: 129 | G33: -0.5477719098 | H33: 7050.920493
B34: 30 | C34: 6.501023106 | D34: 3169.310358 | F34: 130 | G34: 7.091158942 | H34: 6601.475773
B35: 31 | C35: 3.028690031 | D35: 6941.834828 | F35: 131 | G35: 5.778896706 | H35: 9044.445915
B36: 32 | C36: 2.078119927 | D36: 1198.153134 | F36: 132 | G36: 8.983835686 | H36: 14670.61744
B37: 33 | C37: 9.792536315 | D37: 5209.207426 | F37: 133 | G37: 14.26208243 | H37: 13960.90174
B38: 34 | C38: 6.427145514 | D38: 6911.366712 | F38: 134 | G38: 8.176802741 | H38: 10218.55508
B39: 35 | C39: 3.802938833 | D39: 2782.032566 | F39: 135 | G39: 9.54631494 | H39: 11034.97706
B40: 36 | C40: 10.12371957 | D40: 7571.044197 | F40: 136 | G40: 6.430610618 | H40: 6628.681563
B41: 37 | C41: 7.166424795 | D41: 5545.606082 | F41: 137 | G41: 0.8293611824 | H41: 3030.428788
B42: 38 | C42: 8.563372558 | D42: 3994.546503 | F42: 138 | G42: 13.83186844 | H42: 13091.20578
B43: 39 | C43: 0.5272826879 | D43: 11384.43257 | F43: 139 | G43: 12.06102779 | H43: 36909.61326
B44: 40 | C44: 3.038935002 | D44: 2514.203151 | F44: 140 | G44: 4.51035962 | H44: 6376.940519
B45: 41 | C45: 7.94118811 | D45: 14326.88676 | F45: 141 | G45: 10.27956177 | H45: 10257.10814
B46: 42 | C46: 12.23651816 | D46: 7825.657382 | F46: 142 | G46: 8.681236067 | H46: 8968.735516
B47: 43 | C47: 3.594762953 | D47: 2863.231532 | F47: 143 | G47: 13.52006977 | H47: 13868.58687
B48: 44 | C48: 1.668510826 | D48: 602.2512958 | F48: 144 | G48: 7.885932332 | H48: 12466.14988
B49: 45 | C49: 5.265843728 | D49: 5607.419394 | F49: 145 | G49: 7.261543323 | H49: 9557.01975
B50: 46 | C50: 0.4133346843 | D50: 2915.810356 | F50: 146 | G50: 6.06603058 | H50: 5980.894831
B51: 47 | C51: 8.078396592 | D51: 4134.242269 | F51: 147 | G51: 12.13694653 | H51: 12653.07804
B52: 48 | C52: 9.494370771 | D52: 5666.372641 | F52: 148 | G52: 0.8391341024 | H52: 2774.856392
B53: 49 | C53: 0.6142652574 | D53: 347.9300822 | F53: 149 | G53: 12.14376171 | H53: 11829.1268
B54: 50 | C54: 7.13653852 | D54: 5198.556581 | F54: 150 | G54: 6.004974041 | H54: 9379.380611
B55: 51 | C55: 9.329943446 | D55: 12358.13866 | F55: 151 | G55: 8.692717736 | H55: 12546.61934
B56: 52 | C56: 7.213075754 | D56: 3873.618824 | F56: 152 | G56: 6.629131142 | H56: 7874.346336
B57: 53 | C57: 1.481186385 | D57: 1227.661544 | F57: 153 | G57: 9.590074657 | H57: 20578.18875
B58: 54 | C58: 5.454316013 | D58: 4426.236192 | F58: 154 | G58: 14.35247768 | H58: 14355.00933
B59: 55 | C59: 6.059432678 | D59: 8149.110759 | F59: 155 | G59: 9.030213648 | H59: 10450.9649
B60: 56 | C60: 8.521897908 | D60: 5569.131847 | F60: 156 | G60: 6.894184099 | H60: 6688.924624
B61: 57 | C61: 6.188694281 | D61: 19103.85427 | F61: 157 | G61: 4.767787583 | H61: 6677.817605
B62: 58 | C62: 8.97214947 | D62: 5369.093799 | F62: 158 | G62: 6.787550928 | H62: 9897.965862
B63: 59 | C63: 5.11194006 | D63: 9440.854085 | F63: 159 | G63: 10.00765301 | H63: 9993.680236
B64: 60 | C64: 8.556658275 | D64: 5474.302952 | F64: 160 | G64: 4.959905499 | H64: 8413.977219
B65: 61 | C65: 6.433580486 | D65: 4568.047976 | F65: 161 | G65: 3.945815142 | H65: 5347.517718
B66: 62 | C66: 8.200095034 | D66: 4486.202603 | F66: 162 | G66: 8.699251517 | H66: 8758.435498
B67: 63 | C67: 5.912750621 | D67: 5913.89609 | F67: 163 | G67: 6.21207625 | H67: 7872.802159
B68: 64 | C68: 5.487554347 | D68: 14027.92656 | F68: 164 | G68: 13.47353277 | H68: 13098.03394
B69: 65 | C69: 7.000438106 | D69: 4841.281591 | F69: 165 | G69: 13.93814435 | H69: 13338.14757
B70: 66 | C70: 4.589090937 | D70: 3985.58593 | F70: 166 | G70: 10.12408571 | H70: 12918.65864
B71: 67 | C71: 4.668132474 | D71: 6670.638185 | F71: 167 | G71: 3.987701032 | H71: 6747.182429
B72: 68 | C72: -1.634983338 | D72: 5032.900051 | F72: 168 | G72: 0.3619489379 | H72: 4850.151248
B73: 69 | C73: 10.8901645 | D73: 9305.225992 | F73: 169 | G73: 10.26777075 | H73: 10235.81836
B74: 70 | C74: 5.098703086 | D74: 3069.345565 | F74: 170 | G74: 8.583769865 | H74: 8227.674832
B75: 71 | C75: 10.56307725 | D75: 5517.405809 | F75: 171 | G75: 11.12657211 | H75: 13769.32517
B76: 72 | C76: 12.26872335 | D76: 6182.673247 | F76: 172 | G76: 14.70843159 | H76: 14345.7055
B77: 73 | C77: 9.512652773 | D77: 4768.140248 | F77: 173 | G77: 5.425536427 | H77: 9668.622882
B78: 74 | C78: 5.100071648 | D78: 3148.543621 | F78: 174 | G78: 12.82212518 | H78: 12538.79717
B79: 75 | C79: 5.727781805 | D79: 3356.888755 | F79: 175 | G79: 5.186292549 | H79: 7339.102738
B80: 76 | C80: 3.745744129 | D80: 1971.162507 | F80: 176 | G80: 3.840108965 | H80: 4931.300648
B81: 77 | C81: 11.32464121 | D81: 7634.649743 | F81: 177 | G81: 2.139681735 | H81: 11003.81522
B82: 78 | C82: 4.35239333 | D82: 2980.662525 | F82: 178 | G82: 5.618277486 | H82: 7311.857415
B83: 79 | C83: 10.87501353 | D83: 11109.67876 | F83: 179 | G83: 8.675194666 | H83: 8539.921439
B84: 80 | C84: 7.672023286 | D84: 5023.02767 | F84: 180 | G84: 3.900844094 | H84: 5155.009534
B85: 81 | C85: 10.67296085 | D85: 9763.996731 | F85: 181 | G85: 5.68930617 | H85: 5706.355166
B86: 82 | C86: 3.471601306 | D86: 1677.746535 | F86: 182 | G86: 6.879787207 | H86: 6729.917029
B87: 83 | C87: 10.07039819 | D87: 7454.442667 | F87: 183 | G87: 4.286721437 | H87: 5057.211505
B88: 84 | C88: 14.14924984 | D88: 7425.346899 | F88: 184 | G88: 13.74649165 | H88: 14159.68728
B89: 85 | C89: 10.94809074 | D89: 9027.9219 | F89: 185 | G89: 4.388045211 | H89: 6599.775202
B90: 86 | C90: 4.206954236 | D90: 8743.502525 | F90: 186 | G90: 0.4252284095 | H90: 4934.898367
B91: 87 | C91: 6.489022728 | D91: 9353.782684 | F91: 187 | G91: 6.784496982 | H91: 8045.035707
B92: 88 | C92: 0.6293149218 | D92: 3964.295979 | F92: 188 | G92: 5.758363334 | H92: 8471.106264
B93: 89 | C93: 10.62923449 | D93: 7358.812725 | F93: 189 | G93: 6.578386372 | H93: 7607.384282
B94: 90 | C94: 3.726842189 | D94: 2838.204159 | F94: 190 | G94: 7.282468056 | H94: 7263.244576
B95: 91 | C95: 8.116580927 | D95: 115200.0266 | F95: 191 | G95: 6.367650531 | H95: 6437.792629
B96: 92 | C96: 5.392577071 | D96: 14707.58676 | F96: 192 | G96: 5.475083985 | H96: 6326.380985
B97: 93 | C97: 10.67730585 | D97: 6598.507617 | F97: 193 | G97: 6.341531361 | H97: 8331.847269
B98: 94 | C98: 6.036370087 | D98: 7500.021089 | F98: 194 | G98: 5.687662453 | H98: 6866.515359
B99: 95 | C99: 0.4120837718 | D99: 936.6991731 | F99: 195 | G99: 5.17788915 | H99: 8633.032887
B100: 96 | C100: 2.883178831 | D100: 5197.405447 | F100: 196 | G100: 7.568483187 | H100: 13351.10431
B101: 97 | C101: 11.62566294 | D101: 6231.841874 | F101: 197 | G101: 8.655633923 | H101: 10863.09347
B102: 98 | C102: 4.940115519 | D102: 8692.05113 | F102: 198 | G102: 7.525936334 | H102: 8810.739195
B103: 99 | C103: 8.208008557 | D103: 4141.773199 | F103: 199 | G103: 8.530981715 | H103: 14064.62143
B104: 100 | C104: 4.58315883 | D104: 3620.341153 | F104: 200 | G104: 0.8746548127 | H104: 1231.172126

Sheet Summary Statistics
A1: Summary Statistics
B3: Control Group | E3: Treatment Group
B4: Effect | C4: Cost | E4: Effect | F4: Cost
A5: mean
A6: standard deviation
A7: standard error
B9: Difference
B10: Effect | C10: Cost
A11: mean
A12: standard error
A13: lower 95% limit
A14: upper 95% limit
B16: ICER
A18: point estimate
A21: correlation (control)
A22: correlation (treatment)
A23: correlation (difference)

Sheet Bootstrapping
A1: Bootstrap Results
Z2: Rc | AA2: 50000
A3: The bootstrap resamples: | I3: Bootstrapped means for the: | Z3: pCE | AK3: pCE
A5: Control Group | E5: Treatment Group | I5: Bootstrap | K5: Control group | O5: Treatment Group | R5: Differences | AF5: Bootstrapping net-benefits
A6: Patient | B6: Effect | C6: Cost | E6: Patient | F6: Effect | G6: Cost | I6: replication | K6: Effect | L6: Cost | O6: Effect | P6: Cost | R6: Effect | S6: Cost | U6: ICER | W6: Summary information for the ICER | AA6: CE? | AC6: Rc | AD6: pCE | AF6: NB | AH6: Summary information | AL6: CE?
A8: =INT(RAND()*100)+1 -> 70 | B8: =VLOOKUP(A8,control,2,1) -> 5.098703086 | C8: =VLOOKUP(A8,control,3,1) -> 3069.345565 | E8: =INT(RAND()*100)+101 -> 174 | F8: =VLOOKUP(E8,treatment,2,1) -> 12.82212518 | G8: =VLOOKUP(E8,treatment,3,1) -> 12538.79717 | I8: 1 | W8: mean | AC8: 0 | AH8: mean
A9: =INT(RAND()*100)+1 -> 51 | B9: 9.329943446 | C9: 12358.13866 | E9: =INT(RAND()*100)+101 -> 119 | F9: 13.63087092 | G9: 17970.13463 | I9: 2 | W9: Standard deviation | AC9: 1000 | AH9: Standard deviation
A10: 93 | B10: 10.67730585 | C10: 6598.507617 | E10: 143 | F10: 13.52006977 | G10: 13868.58687 | I10: 3 | W10: Median | AC10: 2000 | AH10: Median
A11: 17 | B11: 2.380459127 | C11: 1547.30767 | E11: 160 | F11: 4.959905499 | G11: 8413.977219 | I11: 4 | W11: 2.5th percentile | AC11: 3000 | AH11: 2.5th percentile
A12: 83 | B12: 10.07039819 | C12: 7454.442667 | E12: 164 | F12: 13.47353277 | G12: 13098.03394 | I12: 5 | W12: 97.5th percentile | AC12: 4000 | AH12: 97.5th percentile
A13: 32 | B13: 2.078119927 | C13: 1198.153134 | E13: 192 | F13: 5.475083985 | G13: 6326.380985 | I13: 6 | W13: min | AC13: 5000 | AH13: min
A14: 46 | B14: 0.4133346843 | C14: 2915.810356 | E14: 164 | F14: 13.47353277 | G14: 13098.03394 | I14: 7 | W14: max | AC14: 6000 | AH14: max
A15: 59 | B15: 5.11194006 | C15: 9440.854085 | E15: 147 | F15: 12.13694653 | G15: 12653.07804 | I15: 8 | AC15: 7000
A16: 98 | B16: 4.940115519 | C16: 8692.05113 | E16: 151 | F16: 8.692717736 | G16: 12546.61934 | I16: 9 | AC16: 8000
A17: 50 | B17: 7.13653852 | C17: 5198.556581 | E17: 183 | F17: 4.286721437 | G17: 5057.211505 | I17: 10 | W17: Bin Range | AC17: 9000 | AH17: Bin Range
A18: 17 | B18: 2.380459127 | C18: 1547.30767 | E18: 160 | F18: 4.959905499 | G18: 8413.977219 | I18: 11 | W18: -20000 | AC18: 10000 | AH18: -10000
A19: 45 | B19: 5.265843728 | C19: 5607.419394 | E19: 105 | F19: 4.949594592 | G19: 5949.474758 | I19: 12 | W19: -18000 | AC19: 11000 | AH19: -9000
A20: 79 | B20: 10.87501353 | C20: 11109.67876 | E20: 119 | F20: 13.63087092 | G20: 17970.13463 | I20: 13 | W20: -16000 | AC20: 12000 | AH20: -8000
A21: 78 | B21: 4.35239333 | C21: 2980.662525 | E21: 185 | F21: 4.388045211 | G21: 6599.775202 | I21: 14 | W21: -14000 | AC21: 13000 | AH21: -7000
A22: 11 | B22: 4.88901648 | C22: 3230.190786 | E22: 175 | F22: 5.186292549 | G22: 7339.102738 | I22: 15 | W22: -12000 | AC22: 14000 | AH22: -6000
A23: 1 | B23: 5.523022223 | C23: 3641.757438 | E23: 149 | F23: 12.14376171 | G23: 11829.1268 | I23: 16 | W23: -10000 | AC23: 15000 | AH23: -5000
A24: 88 | B24: 0.6293149218 | C24: 3964.295979 | E24: 183 | F24: 4.286721437 | G24: 5057.211505 | I24: 17 | W24: -8000 | AC24: 16000 | AH24: -4000
A25: 2 | B25: =VLOOKUP(A25,control,2,1) -> 5.191964663 | C25: =VLOOKUP(A25,control,3,1) -> 12121.52591 | E25: 140 | F25: =VLOOKUP(E25,treatment,2,1) -> 4.51035962 | G25: =VLOOKUP(E25,treatment,3,1) -> 6376.940519 | I25: 18 | W25: -6000 | AC25: 17000 | AH25: -3000
A26: 34 | B26: 6.427145514 | C26: 6911.366712 | E26: 171 | F26: 11.12657211 | G26: 13769.32517 | I26: 19 | W26: -4000 | AC26: 18000 | AH26: -2000
A27: 73 | B27: 9.512652773 | C27: 4768.140248 | E27: 149 | F27: 12.14376171 | G27: 11829.1268 | I27: 20 | W27: -2000 | AC27: 19000 | AH27: -1000
A28: 26 | B28: 5.15252559 | C28: 3217.585179 | E28: 174 | F28: 12.82212518 | G28: 12538.79717 | I28: 21 | W28: 0 | AC28: 20000 | AH28: 0
A29: 22 | B29: 2.939577423 | C29: 1482.47376 | E29: 152 | F29: 6.629131142 | G29: 7874.346336 | I29: 22 | W29: 2000 | AC29: 21000 | AH29: 1000
A30: 40 | B30: 3.038935002 | C30: 2514.203151 | E30: 127 | F30: 5.86250384 | G30: 9938.764449 | I30: 23 | W30: 4000 | AC30: 22000 | AH30: 2000
A31: 9 | B31: 11.71142082 | C31: 6014.418777 | E31: 170 | F31: 8.583769865 | G31: 8227.674832 | I31: 24 | W31: 6000 | AC31: 23000 | AH31: 3000
A32: 66 | B32: 4.589090937 | C32: 3985.58593 | E32: 167 | F32: 3.987701032 | G32: 6747.182429 | I32: 25 | W32: 8000 | AC32: 24000 | AH32: 4000
A33: 66 | B33: 4.589090937 | C33: 3985.58593 | E33: 142 | F33: 8.681236067 | G33: 8968.735516 | I33: 26 | W33: 10000 | AC33: 25000 | AH33: 5000
A34: 31 | B34: 3.028690031 | C34: 6941.834828 | E34: 168 | F34: 0.3619489379 | G34: 4850.151248 | I34: 27 | W34: 12000 | AC34: 26000 | AH34: 6000
A35: 93 | B35: 10.67730585 | C35: 6598.507617 | E35: 143 | F35: 13.52006977 | G35: 13868.58687 | I35: 28 | W35: 14000 | AC35: 27000 | AH35: 7000
A36: 5 | B36: 7.531006956 | C36: 13883.47877 | E36: 184 | F36: 13.74649165 | G36: 14159.68728 | I36: 29 | W36: 16000 | AC36: 28000 | AH36: 8000
A37: 12 | B37: 3.769616975 | C37: 2868.176203 | E37: 120 | F37: 10.77669024 | G37: 20972.19296 | I37: 30 | W37: 18000 | AC37: 29000 | AH37: 9000
A38: 99 | B38: 8.208008557 | C38: 4141.773199 | E38: 196 | F38: 7.568483187 | G38: 13351.10431 | I38: 31 | W38: 20000 | AC38: 30000 | AH38: 10000
A39: 21 | B39: 0.2873014006 | C39: 5738.298393 | E39: 180 | F39: 3.900844094 | G39: 5155.009534 | I39: 32 | W39: 22000 | AC39: 31000 | AH39: 11000
A40: 75 | B40: 5.727781805 | C40: 3356.888755 | E40: 183 | F40: 4.286721437 | G40: 5057.211505 | I40: 33 | W40: 24000 | AC40: 32000 | AH40: 12000
A41: 2 | B41: 5.191964663 | C41: 12121.52591 | E41: 151 | F41: 8.692717736 | G41: 12546.61934 | I41: 34 | W41: 26000 | AC41: 33000 | AH41: 13000
A42: 39 | B42: 0.5272826879 | C42: 11384.43257 | E42: 170 | F42: 8.583769865 | G42: 8227.674832 | I42: 35 | W42: 28000 | AC42: 34000 | AH42: 14000
A43: 35 | B43: 3.802938833 | C43: 2782.032566 | E43: 181 | F43: 5.68930617 | G43: 5706.355166 | I43: 36 | W43: 30000 | AC43: 35000 | AH43: 15000
A44: 2 | B44: 5.191964663 | C44: 12121.52591 | E44: 199 | F44: 8.530981715 | G44: 14064.62143 | I44: 37 | W44: 32000 | AC44: 36000 | AH44: 16000
A45: 16 | B45: 4.199795298 | C45: 4520.682798 | E45: 117 | F45: 9.969394571 | G45: 9842.288976 | I45: 38 | W45: 34000 | AC45: 37000 | AH45: 17000
A46: 16 | B46: 4.199795298 | C46: 4520.682798 | E46: 147 | F46: 12.13694653 | G46: 12653.07804 | I46: 39 | W46: 36000 | AC46: 38000 | AH46: 18000
A47: 1 | B47: 5.523022223 | C47: 3641.757438 | E47: 106 | F47: 4.585321511 | G47: 6029.645031 | I47: 40 | W47: 38000 | AC47: 39000 | AH47: 19000
A48: 7 | B48: 6.929599869 | C48: 5326.927359 | E48: 134 | F48: 8.176802741 | G48: 10218.55508 | I48: 41 | W48: 40000 | AC48: 40000 | AH48: 20000
A49: 83 | B49: 10.07039819 | C49: 7454.442667 | E49: 195 | F49: 5.17788915 | G49: 8633.032887 | I49: 42 | W49: 42000 | AC49: 41000
A50: 23 | B50: 4.302812942 | C50: 3009.210511 | E50: 140 | F50: 4.51035962 | G50: 6376.940519 | I50: 43 | W50: 44000 | AC50: 42000
A51: 87 | B51: 6.489022728 | C51: 9353.782684 | E51: 196 | F51: 7.568483187 | G51: 13351.10431 | I51: 44 | W51: 46000 | AC51: 43000
A52: 22 | B52: 2.939577423 | C52: 1482.47376 | E52: 106 | F52: 4.585321511 | G52: 6029.645031 | I52: 45 | W52: 48000 | AC52: 44000
A53: 77 | B53: 11.32464121 | C53: 7634.649743 | E53: 200 | F53: 0.8746548127 | G53: 1231.172126 | I53: 46 | W53: 50000 | AC53: 45000
A54: 100 | B54: 4.58315883 | C54: 3620.341153 | E54: 137 | F54: 0.8293611824 | G54: 3030.428788 | I54: 47 | W54: 52000 | AC54: 46000
A55: 13 | B55: 8.532585627 | C55: 5451.788942 | E55: 105 | F55: 4.949594592 | G55: 5949.474758 | I55: 48 | W55: 54000 | AC55: 47000
A56: 40 | B56: 3.038935002 | C56: 2514.203151 | E56: 115 | F56: 8.234103391 | G56: 15783.23028 | I56: 49 | W56: 56000 | AC56: 48000
A57: 5 | B57: 7.531006956 | C57: 13883.47877 | E57: 195 | F57: 5.17788915 | G57: 8633.032887 | I57: 50 | W57: 58000 | AC57: 49000
A58: 74 | B58: 5.100071648 | C58: 3148.543621 | E58: 141 | F58: 10.27956177 | G58: 10257.10814 | I58: 51 | W58: 60000 | AC58: 50000
A59: 4 | B59: 9.578636621 | C59: 7900.48733 | E59: 125 | F59: 4.762060757 | G59: 6267.357199 | I59: 52
A60: 95 | B60: 0.4120837718 | C60: 936.6991731 | E60: 174 | F60: 12.82212518 | G60: 12538.79717 | I60: 53
A61: 29 | B61: 9.670097761 | C61: 5240.382758 | E61: 109 | F61: 9.647287374 | G61: 13825.65314 | I61: 54
A62: 58 | B62: 8.97214947 | C62: 5369.093799 | E62: 134 | F62: 8.176802741 | G62: 10218.55508 | I62: 55
A63: 23 | B63: 4.302812942 | C63: 3009.210511 | E63: 137 | F63: 0.8293611824 | G63: 3030.428788 | I63: 56
A64: 38 | B64: 8.563372558 | C64: 3994.546503 | E64: 138 | F64: 13.83186844 | G64: 13091.20578 | I64: 57
A65: 94 | B65: 6.036370087 | C65: 7500.021089 | E65: 196 | F65: 7.568483187 | G65: 13351.10431 | I65: 58
A66: 4 | B66: 9.578636621 | C66: 7900.48733 | E66: 141 | F66: 10.27956177 | G66: 10257.10814 | I66: 59
A67: 73 | B67: 9.512652773 | C67: 4768.140248 | E67: 140 | F67: 4.51035962 | G67: 6376.940519 | I67: 60
A68: 45 | B68: 5.265843728 | C68: 5607.419394 | E68: 156 | F68: 6.894184099 | G68: 6688.924624 | I68: 61
A69: 54 | B69: 5.454316013 | C69: 4426.236192 | E69: 162 | F69: 8.699251517 | G69: 8758.435498 | I69: 62
A70: 16 | B70: 4.199795298 | C70: 4520.682798 | E70: 163 | F70: 6.21207625 | G70: 7872.802159 | I70: 63
A71: 43 | B71: 3.594762953 | C71: 2863.231532 | E71: 194 | F71: 5.687662453 | G71: 6866.515359 | I71: 64
A72: 10 | B72: 6.118099262 | C72: 9322.032173 | E72: 142 | F72: 8.681236067 | G72: 8968.735516 | I72: 65
A73: =INT(RAND()*100)+1 -> 86 | B73: 4.206954236 | C73: 8743.502525 | E73: =INT(RAND()*100)+101 -> 117 | F73: 9.969394571 | G73: 9842.288976 | I73: 66
A74: 54 | B74: 5.454316013 | C74: 4426.236192 | E74: 173 | F74: 5.425536427 | G74: 9668.622882 | I74: 67
A75: 93 | B75: 10.67730585 | C75: 6598.507617 | E75: 113 | F75: 13.19778105 | G75: 12882.23782 | I75: 68
A76: 4 | B76: 9.578636621 | C76: 7900.48733 | E76: 120 | F76: 10.77669024 | G76: 20972.19296 | I76: 69
A77: 30 | B77: 6.501023106 | C77: 3169.310358 | E77: 138 | F77: 13.83186844 | G77: 13091.20578 | I77: 70
A78: 91 | B78: 8.116580927 | C78: 115200.0266 | E78: 122 | F78: 1.551495319 | G78: 9871.206883 | I78: 71
A79: 19 | B79: 4.548774834 | C79: 3546.402597 | E79: 185 | F79: 4.388045211 | G79: 6599.775202 | I79: 72
A80: 93 | B80: 10.67730585 | C80: 6598.507617 | E80: 189 | F80: 6.578386372 | G80: 7607.384282 | I80: 73
A81: 4 | B81: 9.578636621 | C81: 7900.48733 | E81: 167 | F81: 3.987701032 | G81: 6747.182429 | I81: 74
A82: 45 | B82: 5.265843728 | C82: 5607.419394 | E82: 123 | F82: 4.84472755 | G82: 12813.82846 | I82: 75
A83: 94 | B83: 6.036370087 | C83: 7500.021089 | E83: 164 | F83: 13.47353277 | G83: 13098.03394 | I83: 76
A84: 51 | B84: 9.329943446 | C84: 12358.13866 | E84: 130 | F84: 7.091158942 | G84: 6601.475773 | I84: 77
A85: 67 | B85: 4.668132474 | C85: 6670.638185 | E85: 116 | F85: 3.564789878 | G85: 5259.13716 | I85: 78
A86: 59 | B86: 5.11194006 | C86: 9440.854085 | E86: 114 | F86: 2.672681153 | G86: 13839.59325 | I86: 79
A87: 20 | B87: 9.591560253 | C87: 5646.980802 | E87: 101 | F87: 8.44867953 | G87: 7674.242551 | I87: 80
A88: 14 | B88: 6.318352662 | C88: 7685.287676 | E88: 106 | F88: 4.585321511 | G88: 6029.645031 | I88: 81
A89: 66 | B89: =VLOOKUP(A89,control,2,1) -> 4.589090937 | C89: =VLOOKUP(A89,control,3,1) -> 3985.58593 | E89: 168 | F89: =VLOOKUP(E89,treatment,2,1) -> 0.3619489379 | G89: =VLOOKUP(E89,treatment,3,1) -> 4850.151248 | I89: 82
A90: 69 | B90: 10.8901645 | C90: 9305.225992 | E90: 103 | F90: 3.126301614 | G90: 6530.94399 | I90: 83
A91: 15 | B91: 3.90346907 | C91: 3228.510419 | E91: 186 | F91: 0.4252284095 | G91: 4934.898367 | I91: 84
A92: 23 | B92: 4.302812942 | C92: 3009.210511 | E92: 183 | F92: 4.286721437 | G92: 5057.211505 | I92: 85
A93: 58 | B93: 8.97214947 | C93: 5369.093799 | E93: 185 | F93: 4.388045211 | G93: 6599.775202 | I93: 86
A94: 1 | B94: 5.523022223 | C94: 3641.757438 | E94: 101 | F94: 8.44867953 | G94: 7674.242551 | I94: 87
A95: 42 | B95: 12.23651816 | C95: 7825.657382 | E95: 192 | F95: 5.475083985 | G95: 6326.380985 | I95: 88
A96: 29 | B96: 9.670097761 | C96: 5240.382758 | E96: 129 | F96: -0.5477719098 | G96: 7050.920493 | I96: 89
A97: 29 | B97: 9.670097761 | C97: 5240.382758 | E97: 123 | F97: 4.84472755 | G97: 12813.82846 | I97: 90
A98: 55 | B98: 6.059432678 | C98: 8149.110759 | E98: 157 | F98: 4.767787583 | G98: 6677.817605 | I98: 91
A99: 87 | B99: 6.489022728 | C99: 9353.782684 | E99: 200 | F99: 0.8746548127 | G99: 1231.172126 | I99: 92
A100: 81 | B100: 10.67296085 | C100: 9763.996731 | E100: 184 | F100: 13.74649165 | G100: 14159.68728 | I100: 93
A101: 47 | B101: =VLOOKUP(A101,control,2,1) -> 8.078396592 | C101: =VLOOKUP(A101,control,3,1) -> 4134.242269 | E101: 113 | F101: =VLOOKUP(E101,treatment,2,1) -> 13.19778105 | G101: =VLOOKUP(E101,treatment,3,1) -> 12882.23782 | I101: 94
A102: 96 | B102: 2.883178831 | C102: 5197.405447 | E102: 192 | F102: 5.475083985 | G102: 6326.380985 | I102: 95
A103: 5 | B103: 7.531006956 | C103: 13883.47877 | E103: 101 | F103: 8.44867953 | G103: 7674.242551 | I103: 96
A104: 19 | B104: 4.548774834 | C104: 3546.402597 | E104: 169 | F104: 10.26777075 | G104: 10235.81836 | I104: 97
A105: 61 | B105: 6.433580486 | C105: 4568.047976 | E105: 139 | F105: 12.06102779 | G105: 36909.61326 | I105: 98
A106: 75 | B106: 5.727781805 | C106: 3356.888755 | E106: 154 | F106: 14.35247768 | G106: 14355.00933 | I106: 99
A107: 83 | B107: 10.07039819 | C107: 7454.442667 | E107: 173 | F107: 5.425536427 | G107: 9668.622882 | I107: 100
I108: 101
A109: means: | B109: =AVERAGE(B8:B107) -> 6.281858745 | C109: =AVERAGE(C8:C107) -> 7016.618902 | F109: =AVERAGE(F8:F107) -> 7.414939343 | G109: =AVERAGE(G8:G107) -> 9736.480727 | I109: 102
I110: 103
I111: 104
I112: 105
I113: 106
I114: 107
I115: 108
I116: 109
I117: 110
I118: 111
I119: 112
I120: 113
I121: 114
I122: 115
I123: 116
I124: 117
I125: 118
I126: 119
I127: 120
I128: 121
I129: 122
I130: 123
I131: 124
I132: 125
I133: 126
I134: 127
I135: 128
I136: 129
I137: 130
I138: 131
I139: 132
I140: 133
I141: 134
I142: 135
I143: 136
I144: 137
I145: 138
I146: 139
I147: 140
I148: 141
I149: 142
I150: 143
I151: 144
I152: 145
I153: 146
I154: 147
I155: 148
I156: 149
I157: 150
I158: 151
I159: 152
I160: 153
I161: 154
I162: 155
I163: 156
I164: 157
I165: 158
I166: 159
I167: 160
I168: 161
I169: 162
I170: 163
I171: 164
I172: 165
I173: 166
I174: 167
I175: 168
I176: 169
I177: 170
I178: 171
I179: 172
I180: 173
I181: 174
I182: 175
I183: 176
I184: 177
I185: 178
I186: 179
I187: 180
I188: 181
I189: 182
I190: 183
I191: 184
I192: 185
I193: 186
I194: 187
I195: 188
I196: 189
I197: 190
I198: 191
I199: 192
I200: 193
I201: 194
I202: 195
... 805 more rows

Sheet Parametric
A1: Parametric uncertainty analysis
A5: Parametric CEA curve
A6: Rc | B6: NB | C6: seNB | D6: z | E6: pCE
A8: 0
A9: 1000
A10: 2000
A11: 3000
A12: 4000
A13: 5000
A14: 6000
A15: 7000
A16: 8000
A17: 9000
A18: 10000
A19: 11000
A20: 12000
A21: 13000
A22: 14000
A23: 15000
A24: 16000
A25: 17000
A26: 18000
A27: 19000
A28: 20000
A29: 21000
A30: 22000
A31: 23000
A32: 24000
A33: 25000
A34: 26000
A35: 27000
A36: 28000
A37: 29000
A38: 30000
A39: 31000
A40: 32000
A41: 33000
A42: 34000
A43: 35000
A44: 36000
A45: 37000
A46: 38000
A47: 39000
A48: 40000
A49: 41000
A50: 42000
A51: 43000
A52: 44000
A53: 45000
A54: 46000
A55: 47000
A56: 48000
A57: 49000
A58: 50000
